[Event "European Women Rapid-ch 2023"]
[Site "Monaco"]
[Date "2024.01.14"]
[Round "9.19"]
[White "Rudzinska, Michalina"]
[Black "Vega Gutierrez, Sabrina"]
[Result "0-1"]
[ECO "B33"]
[WhiteElo "2241"]
[BlackElo "2378"]
[Annotator "RC"]
[PlyCount "84"]
[EventDate "2023.12.19"]
[EventType "swiss"]
[EventCountry "MNC"]
[SourceTitle "playchess.com"]
[Source "ChessBase"]
[SourceQuality "1"]
[TimeControl "900+10"]

1. e4 {[%emt 0:00:02]} c5 {[%emt 0:00:01]} 2. Nf3 {[%emt 0:00:02]} Nc6 {[%emt 0:00:01]} 3. d4 {[%emt 0:00:01]} cxd4 {[%emt 0:00:02]} 4. Nxd4 {[%emt 0:00:03]} Nf6 {[%emt 0:00:02]} 5. Nc3 {[%emt 0:00:04]} e5 {[%emt 0:00:02]} 6. Ndb5 {[%emt 0:00:06]} d6 {[%emt 0:00:02]} 7. Bg5 {[%emt 0:00:17]} a6 {[%emt 0:00:01]} 8. Na3 {[%emt 0:00:02]} b5 {[%emt 0:00:02]} 9. Nab1 {[%emt 0:00:14]} Be7 {[%emt 0:00:04]} 10. Bxf6 {[%emt 0:00:44]} Bxf6 {[%emt 0:00:02]} 11. a4 {[%emt 0:00:05]} b4 {[%emt 0:00:02]} 12. Nd5 {[%emt 0:00:02]} O-O {[%emt 0:00:17]} 13. Bc4 {[%emt 0:00:22]} Bg5 {[%emt 0:01:02]} 14. O-O {[%emt 0:00:17]} Be6 {[%emt 0:00:08]} 15. Qd3 {[%emt 0:01:01]} a5 {[%emt 0:00:02]} 16. Nd2 {[%emt 0:00:22]} Rc8 {[%emt 0:01:20]} 17. Rfd1 {[%emt 0:01:09]} Nd4 {[%emt 0:00:24]} 18. c3 {[%emt 0:00:28]} bxc3 {[%emt 0:00:03]} 19. bxc3 {[%emt 0:00:02]} Bxd5 {[%emt 0:00:18]} 20. exd5 {[%emt 0:00:58]} Bxd2 {[%emt 0:00:35]} 21. cxd4 {[%emt 0:02:08]} Bb4 {[%emt 0:01:12]} 22. dxe5 {[%emt 0:00:05]} dxe5 {[%emt 0:00:02]} 23. Bb5 {[%emt 0:01:46]} Rc3 {[%emt 0:02:03]} 24. Qe2 {[%emt 0:01:22]} Qd6 {[%emt 0:00:53]} 25. Rd3 {[%emt 0:00:34]} Rfc8 {[%emt 0:02:11]} 26. Rxc3 {[%emt 0:01:26]} Bxc3 {[%emt 0:01:04]} 27. Rd1 {[%emt 0:00:04]} Bd4 {[%emt 0:00:03]} 28. Bc6 {[%emt 0:01:46]} Rb8 {[%emt 0:00:04]} 29. g3 {[%emt 0:00:31]} g6 {[%emt 0:01:08]} 30. Kg2 {[%emt 0:00:48]} h5 {[%emt 0:00:40]} 31. h4 {[%emt 0:00:19]} Qc5 {[%emt 0:01:57]} 32. Rd2 {[%emt 0:01:17]} Rb3 {[%emt 0:00:52]} 33. Rc2 {[%emt 0:00:16]} Qd6 {[%emt 0:00:02]} 34. Qc4 {[%emt 0:01:34]} Rb4 {[%emt 0:00:18]} 35. Qa6 {[%emt 0:00:12]} e4 {[%emt 0:00:19]} 36. Qe2 {[%emt 0:00:26]} e3 {[%emt 0:00:36]} 37. fxe3 {[%emt 0:00:10]} Rb3 {[%emt 0:00:07]} 38. Qc4 {[%emt 0:00:12]} Rxe3 {[%emt 0:00:08]} 39. Rf2 {[%emt 0:00:12]} Qxg3+ {[%emt 0:01:48]} 40. Kf1 {[%emt 0:00:01]} Qh3+ {[%emt 0:00:35]} 41. Rg2 {[%emt 0:00:02]} Qf3+ {[%emt 0:00:40]} 42. Kg1 {[%emt 0:00:10]} Re2+ {[%emt 0:00:06]} 0-1

[Event "European Women Rapid-ch 2023"]
[Site "Monaco"]
[Date "2024.01.14"]
[Round "9.20"]
[White "Hryshchenko, Kamila"]
[Black "Hrebenshchykova, Yelyzaveta"]
[Result "1-0"]
[ECO "C87"]
[WhiteElo "2192"]
[BlackElo "2275"]
[Annotator "ChessBase"]
[PlyCount "77"]
[EventDate "2023.12.19"]
[EventType "swiss"]
[EventCountry "MNC"]
[SourceTitle "playchess.com"]
[Source "ChessBase"]
[SourceQuality "1"]
[TimeControl "900+10"]

1. e4 {[%emt 0:00:02]} e5 {[%emt 0:00:01]} 2. Nf3 {[%emt 0:00:03]} Nc6 {[%emt 0:00:02]} 3. Bb5 {[%emt 0:00:04]} a6 {[%emt 0:00:01]} 4. Ba4 {[%emt 0:00:02]} Nf6 {[%emt 0:00:01]} 5. d4 {[%emt 0:00:01]} exd4 {[%emt 0:00:25]} 6. O-O {[%emt 0:00:02]} Be7 {[%emt 0:02:43]} 7. Re1 {[%emt 0:00:03]} d6 {[%emt 0:01:30]} 8. Nxd4 {[%emt 0:00:20]} Bd7 {[%emt 0:00:01]} 9. Bxc6 {[%emt 0:00:03]} bxc6 {[%emt 0:00:01]} 10. Nc3 {[%emt 0:00:07]} O-O {[%emt 0:00:07]} 11. Bf4 {[%emt 0:00:19]} Rb8 {[%emt 0:00:58]} 12. b3 {[%emt 0:03:11]} Re8 {[%emt 0:01:50]} 13. Qd3 {[%emt 0:00:26]} a5 {[%emt 0:01:26]} 14. Rad1 {[%emt 0:00:24]} Ng4 {[%emt 0:00:59]} 15. h3 {[%emt 0:06:08]} Ne5 {[%emt 0:00:16]} 16. Bxe5 {[%emt 0:00:20]} dxe5 {[%emt 0:00:01]} 17. Nf3 {[%emt 0:00:17]} Bd6 {[%emt 0:00:12]} 18. a4 {[%emt 0:00:16]} Qf6 {[%emt 0:00:28]} 19. Nd2 {[%emt 0:00:51]} Be6 {[%emt 0:00:52]} 20. Re3 {[%emt 0:00:06]} Red8 {[%emt 0:02:36]} 21. Rf3 {[%emt 0:00:02]} Qh4 {[%emt 0:00:30]} 22. Qe2 {[%emt 0:01:18]} Bb4 {[%emt 0:00:28]} 23. Rg3 {[%emt 0:00:43]} Qf4 {[%emt 0:00:58]} 24. Rf3 {[%emt 0:00:07]} Qh6 {[%emt 0:00:26]} 25. Nc4 {[%emt 0:00:41]} Rxd1+ {[%emt 0:00:10]} 26. Nxd1 {[%emt 0:00:21]} Bxc4 {[%emt 0:01:30]} 27. Qxc4 {[%emt 0:00:12]} Qe6 {[%emt 0:00:01]} 28. Qxe6 {[%emt 0:00:11]} fxe6 {[%emt 0:00:00]} 29. Rd3 {[%emt 0:00:07]} Kf8 {[%emt 0:00:34]} 30. Ne3 {[%emt 0:00:02]} Ke7 {[%emt 0:00:22]} 31. Nc4 {[%emt 0:00:02]} Kf6 {[%emt 0:00:01]} 32. Rf3+ {[%emt 0:00:17]} Ke7 {[%emt 0:00:05]} 33. Nxe5 {[%emt 0:00:01]} Kd6 {[%emt 0:00:18]} 34. Nc4+ {[%emt 0:00:26]} Ke7 {[%emt 0:00:28]} 35. Kf1 {[%emt 0:00:24]} Rd8 {[%emt 0:00:17]} 36. Ke2 {[%emt 0:00:02]} g6 {[%emt 0:00:19]} 37. c3 {[%emt 0:00:11]} Bc5 {[%emt 0:00:03]} 38. Nxa5 {[%emt 0:00:02]} Rd6 {[%emt 0:00:11]} 39. Nb7 {[%emt 0:00:04]} 1-0

[Event "European Women Rapid-ch 2023"]
[Site "Monaco"]
[Date "2024.01.14"]
[Round "9.21"]
[White "Ciarletta, Iris"]
[Black "Dornbusch, Tatiana"]
[Result "0-1"]
[ECO "A57"]
[WhiteElo "1911"]
[BlackElo "2218"]
[Annotator "TA"]
[PlyCount "96"]
[EventDate "2023.12.19"]
[EventType "swiss"]
[EventCountry "MNC"]
[SourceTitle "playchess.com"]
[Source "ChessBase"]
[SourceQuality "1"]
[TimeControl "900+10"]

{[%evp 16,96,24,28,27,20,20,20,11,10,6,8,13,17,18,-4,41,41,45,34,41,37,31,-114,-115,-167,-171,-168,-152,-156,-139,-257,-247,-325,-322,-319,-312,-283,-299,-314,-327,-353,-352,-422,-346,-362,-353,-442,-421,-470,-470,-497,-449,-493,-443,-560,-564,-518,-464,-477,-458,-448,-405,-515,-428,-497,-479,-479,-395,-580,-562,-787,-775,-1910,-1729,-29978,-29979,-29992,-29992,-29992,-29993,-29993,-29993]} 1. d4 {[%emt 0:00:04]} Nf6 {[%emt 0:00:02]} 2. c4 {[%emt 0:00:02]} c5 {[%emt 0:00:01]} 3. d5 {[%emt 0:00:01]} b5 {[%emt 0:00:03]} 4. cxb5 {[%emt 0:00:01]} a6 {[%emt 0:00:02]} 5. b6 {[%emt 0:00:01]} g6 {[%emt 0:00:18]} 6. Nc3 {[%emt 0:00:06]} Bg7 {[%emt 0:00:52]} 7. a4 {[%emt 0:00:03]} Qxb6 {[%emt 0:00:37]} 8. Nf3 {[%emt 0:00:21]} d6 {[%emt 0:00:42]} 9. e4 {[%emt 0:00:12]} Bg4 {[%emt 0:01:57]} 10. Be2 {[%emt 0:00:18] OK} Bxf3 {[%emt 0:00:34] OK} 11. Bxf3 {[%emt 0:00:11]} Nbd7 {[%emt 0:00:01] OK. The position is equal.} 12. a5 {[%emt 0:00:16] OK} Qb7 {[%emt 0:00:14] OK} 13. O-O {[%emt 0:00:20]} O-O {[%emt 0:00:01] OK} 14. Be2 {[%emt 0:00:18] OK} Rfb8 {[%emt 0:00:25]} 15. Bc4 {[%emt 0:00:36]} Ne8 {[%emt 0:00:25][%cal Bf6e8,Be8c7,Bc7b5,Bb5d4][%mdl 32] EV=25.47. Inaccurate} 16. f4 {[%emt 0:01:06] Best} Nc7 {[%emt 0:00:23] OK} 17. Kh1 {[%emt 0:00:57]} Nb5 {[%emt 0:00:13] OK} 18. Ne2 {[%emt 0:00:33] OK} Nd4 {[%emt 0:00:25]} 19. Ng3 {[%emt 0:00:25] Mistake (1.4)} (19. Ra3 $14 {stays ahead.}) 19... Nb3 $17 {[%emt 0:00:38] Excellent horsemanship. White is on the road to losing. Best (Easy)} 20. Ra4 {[%emt 0:01:17] Mistake (0.5)} (20. Bxb3 $17 {keeps fighting.} Qxb3 21. Qe2) 20... Nxc1 $19 {[%emt 0:00:17] Best (Easy)} 21. Qxc1 {[%emt 0:00:02]} Qxb2 {[%emt 0:00:10] OK} ({Don't play} 21... Bxb2 22. Qc2 Bd4 23. Ne2 $15) 22. Qd1 {[%emt 0:00:42] White is weak on the dark squares} Rb4 {[%emt 0:00:27] Black is more active. OK} 23. Ra2 {[%emt 0:00:29] Mistake (1.2)} (23. Ne2 $17 {is a better defense.}) 23... Qd4 {[%emt 0:00:34] Best (Easy)} 24. Bd3 {[%emt 0:00:17] Inaccurate} c4 {[%emt 0:00:26] OK} 25. Bc2 {[%emt 0:00:28] OK} Qxd1 {[%emt 0:00:28] OK} 26. Bxd1 {[%emt 0:00:32]} Nc5 {[%emt 0:00:12] OK} 27. Rc2 {[%emt 0:00:18]} Nb3 {[%emt 0:01:37] OK} 28. Be2 {[%emt 0:02:03]} Nxa5 {[%emt 0:00:14] OK} ({But not} 28... Rc8 29. Rb1 $19) 29. Rfc1 {[%emt 0:00:21]} Rc8 {[%emt 0:00:23]} 30. h3 {[%emt 0:00:17]} Bd4 {[%emt 0:01:09] OK} 31. f5 {[%emt 0:01:40]} Rc5 {[%emt 0:00:54] OK} 32. fxg6 {[%emt 0:00:20]} hxg6 {[%emt 0:00:01]} 33. Rd1 {[%emt 0:00:45]} Be5 {[%emt 0:00:40] OK} 34. Nf1 {[%emt 0:00:12] OK} c3 {[%emt 0:00:07] OK} 35. Ne3 {[%emt 0:00:44]} Rxe4 {[%emt 0:00:12] OK} 36. Ng4 {[%emt 0:00:34] OK} Bg7 {[%emt 0:00:07]} 37. Bxa6 {[%emt 0:00:05]} Nc4 {[%emt 0:01:58] OK} 38. Nf2 {[%emt 0:00:54] OK} Rd4 {[%emt 0:00:15]} 39. Rdc1 {[%emt 0:00:54]} Rd2 {[%emt 0:00:31] ...Rxc2 would now be deadly.} 40. Ne4 {[%emt 0:00:23]} Rxc2 {[%emt 0:00:05] OK} (40... Rdxd5 41. Nxc3 Bxc3 42. Rxc3 $19) 41. Rxc2 {[%emt 0:00:03]} Ne3 {[%emt 0:00:18]} 42. Rc1 {[%emt 0:00:12] Mistake (1.9)} (42. Nxc5 {only move.} Nxc2 43. Nb3) 42... Rc7 {[%emt 0:00:23] OK} 43. Be2 {[%emt 0:00:40] Against c2. Inaccurate} c2 {[%emt 0:00:16][%cal Og7b2] [#] White must now prevent ...Bb2! OK} 44. Nf2 {[%emt 0:01:35] Inaccurate} Bb2 {[%emt 0:00:13]} 45. Rg1 {[%emt 0:00:09]} c1=Q {[%emt 0:00:04] Black mates.} 46. Nd1 {[%emt 0:00:08]} Nxd1 {[%emt 0:00:07]} 47. Bxd1 {[%emt 0:00:02]} Bd4 {[%emt 0:00:08]} 48. Rf1 {[%emt 0:00:04]} Qb1 {[%emt 0:00:20] Weighted Error Value: White=0.79/Black=0.13 (very precise) .  Mistake:       	White=4     	---        Inaccurate:     	White=3     	Black=1      OK:         	White=8     	Black=22     Best:        	White=1     	Black=3} 0-1

[Event "European Women Rapid-ch 2023"]
[Site "Monaco"]
[Date "2024.01.14"]
[Round "9.22"]
[White "Rodriguez Redondo, Adhara"]
[Black "Haussernot, Cecile"]
[Result "1-0"]
[ECO "B92"]
[WhiteElo "2130"]
[BlackElo "2136"]
[Annotator "TA"]
[PlyCount "117"]
[EventDate "2023.12.19"]
[EventType "swiss"]
[EventCountry "MNC"]
[SourceTitle "playchess.com"]
[Source "ChessBase"]
[SourceQuality "1"]
[TimeControl "900+10"]

{[%evp 31,116,-48,-28,-29,-37,-57,-28,-39,-35,-36,0,-36,-14,-7,0,-8,0,0,0,0,0,0,29,48,54,35,43,42,58,0,125,-70,-55,-47,-43,-49,-43,-35,-32,-541,-518,-863,-366,-315,-89,-89,-45,-85,-95,-128,-133,-128,-111,-128,-123,-142,24,-127,-99,-103,-54,-88,0,0,0,0,0,0,0,0,0,0,1,-26,0,0,0,-7,0,0,200,213,1233,521,29992,29993,29999]} 1. e4 {[%emt 0:00:01] Postny,Evgeny} c5 {[%emt 0:00:03]} 2. Nf3 {[%emt 0:00:02]} d6 {[%emt 0:00:02]} 3. d4 {[%emt 0:00:01]} cxd4 {[%emt 0:00:01]} 4. Nxd4 {[%emt 0:00:01]} Nf6 {[%emt 0:00:01]} 5. Nc3 {[%emt 0:00:02]} a6 {[%emt 0:00:01]} 6. Be2 {[%emt 0:00:09]} e5 {[%emt 0:00:03]} 7. Nf3 {[%emt 0:00:03]} Be7 {[%emt 0:00:09]} 8. Bg5 {[%emt 0:00:02]} O-O {[%emt 0:01:21]} 9. O-O {[%emt 0:01:32]} Be6 {[%emt 0:00:51]} 10. Bxf6 {[%emt 0:00:54]} Bxf6 {[%emt 0:00:03]} 11. Nd5 {[%emt 0:00:01] 11.Qd2 is the fancy move. B92: Sicilian Najdorf: 6 Be2.} Nd7 {[%emt 0:00:54]} 12. Re1 {[%emt 0:00:08]} Rc8 {[%emt 0:00:23]} 13. c3 {[%emt 0:00:05]} Be7 {[%emt 0:02:45]} 14. Ne3 $146 {[%emt 0:03:04]} ({Predecessor:} 14. Bf1 Nf6 15. Qb3 Nxd5 16. exd5 Bg4 17. Nd2 Rb8 18. a4 Qa5 19. Qc4 Bh5 20. b4 {0-1 Tari,A (2578)-Ding,L (2772) EU-Cup 33rd Antalya 2017 (3.1)}) 14... b5 {[%emt 0:01:07]} 15. Qc2 {[%emt 0:02:17]} Qb6 {[%emt 0:00:34]} 16. b3 {[%emt 0:01:12]} g6 {[%emt 0:03:10]} 17. Rad1 {[%emt 0:02:54]} Qb7 {[%emt 0:00:25]} 18. Nd2 {[%emt 0:01:00]} a5 {[%emt 0:04:31]} 19. Ndf1 {[%emt 0:01:04]} b4 {[%emt 0:00:26]} 20. c4 {[%emt 0:00:10]} Nb8 {[%emt 0:00:01]} 21. Qd3 {[%emt 0:00:32]} Nc6 {[%emt 0:00:13]} 22. Nc2 {[%emt 0:00:05]} f5 {[%emt 0:01:00]} 23. Nfe3 {[%emt 0:00:27]} fxe4 {[%emt 0:00:09]} 24. Qxe4 {[%emt 0:00:10]} Rf4 {[%emt 0:00:02]} 25. Qd3 {[%emt 0:00:14]} Rcf8 {[%emt 0:00:30]} 26. Rf1 {[%emt 0:00:45]} e4 {[%emt 0:00:26]} 27. Qd2 {[%emt 0:00:09]} Qa7 {[%emt 0:00:15]} 28. Qe1 {[%emt 0:01:20]} (28. h3 {simplifies} h5 29. Nd4 Qxd4 30. Qxd4 Nxd4 31. Rxd4 Bg5 32. Nd5) 28... Qc5 {[%emt 0:00:06]} 29. Nd5 {[%emt 0:00:11]} R4f7 $1 {[%emt 0:00:04]} 30. Nce3 {[%emt 0:00:52]} (30. Nxe7+ $14 Rxe7 31. Qd2) 30... Ne5 {[%emt 0:00:05]} (30... Bh4 $11 {remains equal.} 31. Bg4 Bxg4 (31... Bxf2+ 32. Rxf2 Rxf2 33. Bxe6+ Kh8 34. Qxf2 $16) 32. Nxg4 Kg7) 31. Qd2 $2 {[%emt 0:00:25]} (31. Nxe7+ $16 Rxe7 32. Qd2) 31... Bh4 $1 $15 {[%emt 0:00:04]} 32. g3 {[%emt 0:00:24]} Bg5 {[%emt 0:00:05]} 33. Qd4 {[%emt 0:00:09]} Qxd4 {[%emt 0:00:28]} 34. Rxd4 {[%emt 0:00:01]} Bh3 {[%emt 0:00:01]} 35. Rd2 $2 {[%emt 0:00:22][%mdl 8192]} (35. Re1 $1 $15) 35... Bxf1 {[%emt 0:00:06]} 36. Kxf1 {[%emt 0:00:01]} (36. f4 $142 exf3 37. Bxf1) 36... h5 {[%emt 0:00:12]} (36... Rxf2+ $142 37. Kg1 R2f3 38. Bxf3 Nxf3+ (38... Bxe3+ $2 39. Kh1 $19) 39. Kg2 Nxd2) 37. Bd1 $19 {[%emt 0:00:13]} Nd3 $2 {[%emt 0:00:02]} (37... h4 $19 {Hoping for ...Kh8.} 38. Kg1 Kg7) 38. f4 $17 {[%emt 0:00:09]} h4 {[%emt 0:00:24]} 39. Kg2 {[%emt 0:00:09]} Bd8 {[%emt 0:00:05]} 40. Bg4 {[%emt 0:00:14]} Kg7 {[%emt 0:00:11]} 41. Be2 {[%emt 0:00:11]} Nc5 {[%emt 0:00:14]} 42. Bg4 {[%emt 0:00:03]} Re8 {[%emt 0:00:10]} 43. Be2 {[%emt 0:00:15]} g5 $2 {[%emt 0:00:04]} (43... hxg3 $17 44. hxg3 Rh8) 44. Bg4 $2 {[%emt 0:00:09]} (44. Bh5 $11) 44... Ref8 {[%emt 0:00:17]} 45. f5 {[%emt 0:00:10]} Nd3 {[%emt 0:00:02]} ({Black should play} 45... hxg3 $17 46. hxg3 Rh8) 46. Be2 $1 $15 {[%emt 0:00:12] [#]} Ne5 {[%emt 0:00:06]} (46... Nc1 $1 $17) 47. Rd4 $11 {[%emt 0:00:05]} a4 {[%emt 0:00:13]} 48. Rxe4 {[%emt 0:00:05]} axb3 {[%emt 0:00:01]} 49. axb3 {[%emt 0:00:01]} Ra7 {[%emt 0:00:02]} 50. gxh4 {[%emt 0:00:31]} Ra2 {[%emt 0:00:09]} 51. Kf1 $1 {[%emt 0:00:05]} gxh4 {[%emt 0:00:04]} 52. Nxb4 {[%emt 0:00:07]} Rb2 {[%emt 0:00:10]} 53. Nbd5 {[%emt 0:00:18]} Rxb3 {[%emt 0:00:08]} 54. c5 {[%emt 0:00:01]} Rb1+ {[%emt 0:00:28]} 55. Kf2 {[%emt 0:00:12]} Nf7 $2 {[%emt 0:00:32]} (55... Rh1 $11 {and Black is okay.} 56. Kg2 Rb1 (56... Re1 57. Bg4 $11)) 56. c6 $18 {[%emt 0:00:13]} Ba5 $2 {[%emt 0:00:15]} (56... Rc1 57. c7 $18) (56... Bg5 57. c7 Bxe3+ 58. Kxe3 (58. Rxe3 Rb2 $18) 58... Ne5 59. Rxh4 Rc1) 57. Rg4+ {[%emt 0:00:08]} (57. Rxh4 $2 {too greedy.} Be1+ 58. Kg2 Bxh4 $19) (57. f6+ $142 Kg6 58. Rg4+ (58. Rxh4 Be1+ 59. Kg2 Bxh4 $16) 58... Ng5 59. Bd3+ (59. Rxh4 Be1+ 60. Kg2 Rb2 $11) 59... Kf7 60. Bxb1) 57... Kh6 {[%emt 0:00:05]} 58. Rxh4+ {[%emt 0:00:03]} Kg5 {[%emt 0:00:02]} 59. Rh5# {[%emt 0:00:06]} 1-0

[Event "European Women Rapid-ch 2023"]
[Site "Monaco"]
[Date "2024.01.14"]
[Round "9.23"]
[White "Khurtsilava, Inga"]
[Black "Zvereva, Marija"]
[Result "1-0"]
[ECO "A22"]
[WhiteElo "2186"]
[BlackElo "2049"]
[Annotator "TA"]
[PlyCount "109"]
[EventDate "2023.12.19"]
[EventType "swiss"]
[EventCountry "MNC"]
[SourceTitle "playchess.com"]
[Source "ChessBase"]
[SourceQuality "1"]
[TimeControl "900+10"]

{[%evp 14,108,33,12,28,0,-10,-33,1,-68,11,0,0,-9,28,-42,-15,-29,-21,-57,-8,-33,-23,-111,-8,-9,15,4,7,7,19,18,25,25,73,72,77,44,55,0,0,0,0,-60,-26,-99,-20,-20,0,0,0,0,0,0,19,25,176,174,178,191,186,175,405,410,400,391,399,400,391,324,330,311,571,587,629,618,629,629,879,873,1481,1481,1473,1346,1473,1473,1473,1473,1458,1458,1058,883,1466,1458,1430,1335,994]} 1. Nf3 {[%emt 0:00:01]} Nf6 {[%emt 0:00:06]} 2. g3 {[%emt 0:00:02]} d6 {[%emt 0:00:18]} 3. Bg2 {[%emt 0:00:02]} e5 {[%emt 0:00:05]} 4. d3 {[%emt 0:00:04]} Be7 {[%emt 0:00:52]} 5. c4 {[%emt 0:00:03]} O-O {[%emt 0:00:06]} 6. Nc3 {[%emt 0:00:01]} c6 {[%emt 0:00:10]} 7. O-O {[%emt 0:00:04]} Nbd7 {[%emt 0:00:25]} 8. b4 {[%emt 0:00:03][%cal Bb2b4,Bb4b5][%mdl 32]} Qc7 {[%emt 0:00:30]} 9. b5 {[%emt 0:00:03]} d5 {[%emt 0:00:44]} 10. Bb2 {[%emt 0:00:55]} Re8 {[%emt 0:02:16] Black is slightly better.} 11. Rc1 {[%emt 0:00:20]} (11. cxd5 $11 cxd5 12. Rc1) 11... Qa5 {[%emt 0:02:19]} (11... d4 $15 12. Na4 Qa5) 12. Nd2 {[%emt 0:00:50]} d4 {[%emt 0:00:28]} 13. Nb3 {[%emt 0:00:14]} Qc7 {[%emt 0:00:34]} 14. Nb1 {[%emt 0:01:55]} (14. bxc6 $1 $11 bxc6 15. Nb5) 14... Nc5 {[%emt 0:00:35]} 15. Nxc5 {[%emt 0:00:05]} Bxc5 {[%emt 0:00:02]} 16. Nd2 {[%emt 0:00:02]} Bf8 {[%emt 0:00:43]} (16... Bd7 $15 {might be stronger.}) 17. Qa4 {[%emt 0:01:54]} c5 {[%emt 0:00:55]} 18. e4 {[%emt 0:00:53] [#]} (18. Qc2 $11) 18... dxe3 {[%emt 0:00:46]} (18... a6 $1 $17 {...Bd7 would now be deadly.} 19. b6 Qxb6) 19. fxe3 $11 {[%emt 0:00:03]} Bg4 {[%emt 0:00:09]} 20. Ne4 {[%emt 0:00:50]} Nxe4 {[%emt 0:00:15]} 21. Bxe4 {[%emt 0:00:02]} Bh3 {[%emt 0:01:10]} 22. Rf2 {[%emt 0:00:18]} g6 {[%emt 0:00:01]} 23. Bd5 {[%emt 0:00:13]} Be6 {[%emt 0:00:11]} (23... Re7 $11) 24. Rcf1 $16 {[%emt 0:00:35] White is much more active.} Bh6 {[%emt 0:00:55] [#] ...Bxd5 is the strong threat.} 25. Bc1 {[%emt 0:00:55]} (25. Rxf7 {seems wilder.} Bxf7 26. Bxf7+ Qxf7 27. Rxf7 Kxf7 28. Qd1) 25... f5 {[%emt 0:01:12]} 26. Qc2 {[%emt 0:02:41]} (26. e4 $14 Bxc1 27. Rxc1) 26... Bxd5 $11 {[%emt 0:00:23]} 27. cxd5 {[%emt 0:00:01]} e4 {[%emt 0:00:04]} 28. Qc4 {[%emt 0:00:27]} (28. g4 $1 $11) 28... Qd6 {[%emt 0:00:27]} (28... exd3 {is more complex.} 29. d6+ Qf7 30. Qxd3 c4) 29. Rc2 {[%emt 0:00:35]} (29. g4 $1 $11 {keeps the balance.}) 29... b6 {[%emt 0:00:07]} ({Better is} 29... exd3 $17 30. Qxd3 b6) 30. d4 {[%emt 0:00:09]} cxd4 {[%emt 0:00:47]} 31. Qxd4 {[%emt 0:00:06]} Bg7 {[%emt 0:00:05] Against Bb2} 32. Qd2 {[%emt 0:00:46]} Rad8 {[%emt 0:00:34]} 33. Rd1 {[%emt 0:00:02]} Re5 {[%emt 0:00:12]} 34. Bb2 {[%emt 0:00:29]} Rxd5 {[%emt 0:00:07] Loses the game.} (34... Ree8 $1 $11 {and Black stays safe.}) 35. Qxd5+ $18 {[%emt 0:00:05]} Qxd5 {[%emt 0:00:03]} 36. Rxd5 {[%emt 0:00:02]} Rxd5 $11 {[%emt 0:00:04][%mdl 4096] Endgame. KRB-KRB} 37. Rc8+ {[%emt 0:00:03]} Kf7 $2 {[%emt 0:02:15]} (37... Bf8 38. Ba3 Rxb5 (38... Rd1+ $2 39. Kg2 $18) 39. Rxf8+ (39. Bxf8 Rb1+ 40. Kg2 Rb2+ 41. Kh3 Rxa2 $16) 39... Kg7) 38. Rc7+ $18 {[%emt 0:00:02]} Ke6 {[%emt 0:00:13]} 39. Bxg7 {[%emt 0:00:03] KRB-KR} ({Weaker is} 39. Rxg7 Rd1+ (39... Rxb5 $2 {loses.} 40. Bd4 $18) 40. Kg2 Rd2+ 41. Kh3 Rxb2 $17) 39... Rd1+ {[%emt 0:00:18]} 40. Kf2 {[%emt 0:01:08]} Rd2+ {[%emt 0:00:01]} 41. Ke1 {[%emt 0:00:10]} Rxa2 {[%emt 0:00:04]} 42. h4 {[%emt 0:00:05]} Ra5 $2 {[%emt 0:00:20]} (42... Kd6 43. Rb7 Kc5 44. Bd4+ Kxb5 45. Rxh7 Rg2) 43. Bd4 {[%emt 0:00:14] White is clearly winning.} h5 {[%emt 0:00:14]} 44. Kd2 {[%emt 0:00:35]} Rxb5 {[%emt 0:00:12]} 45. Rxa7 {[%emt 0:00:02]} Kd5 {[%emt 0:00:05]} 46. Rb7 {[%emt 0:00:07]} Ra5 {[%emt 0:00:05]} 47. Rxb6 {[%emt 0:00:03]} Ra2+ {[%emt 0:00:02]} 48. Ke1 {[%emt 0:00:15]} Rg2 {[%emt 0:00:08]} 49. Rxg6 {[%emt 0:00:04]} Kc4 {[%emt 0:00:01]} 50. Rc6+ {[%emt 0:00:27]} Kd5 {[%emt 0:00:01]} 51. Rc5+ {[%emt 0:00:08]} Ke6 {[%emt 0:00:01]} 52. Be5 {[%emt 0:00:07] And now Bf4 would win.} Rh2 {[%emt 0:00:11]} 53. Bf4 {[%emt 0:00:05]} Rh1+ {[%emt 0:00:10]} 54. Kd2 {[%emt 0:00:04]} Rh2+ {[%emt 0:00:02]} 55. Kc3 {[%emt 0:00:00] Weighted Error Value: White=0.26 (precise) /Black=0.44.  Mistake:       	White=6     	Black=8      Inaccurate:     	White=3     	Black=4      OK:         	White=8     	Black=11     Best:        	White=5     	Black=2} 1-0